bitfinex/quotes_SOLUSD_20251117
["timestamp","ask_amount","ask_price","bid_price","bid_amount"]
[1763412407384,9.78882769,130.14,130.09,0.71]
[1763412407681,9.78882769,130.14,130.12,14.23052521]
[1763412407845,4.13111397,130.15,130.12,14.23052521]
[1763412407846,22.25207397,130.15,130.12,14.23052521]
[1763412408275,4.13111397,130.15,130.13,0.71]
[1763412408579,4.13111397,130.15,130.13,14.23052521]
[1763412408580,0.1,130.15,130.13,14.23052521]
[1763412409487,0.67,130.14,130.08,0.71]
[1763412409676,0.67,130.14,130.11,14.23052521]
[1763412410062,0.67,130.14,130.12,14.23052521]
[1763412410267,0.1,130.15,130.13,14.94052521]
[1763412410578,0.1,130.15,130.14,14.23052521]
[1763412413886,0.1,130.15,130.12,0.71]
[1763412414087,0.1,130.15,130.14,14.23052521]
[1763412415778,0.1,130.15,130.14,14.94052521]
[1763412416183,0.2,130.22,130.14,14.94052521]
[1763412416381,0.2,130.22,130.2,14.23052521]
[1763412416382,9.98882769,130.22,130.2,14.23052521]
[1763412416583,0.2,130.22,130.2,14.23052521]
[1763412416894,0.2,130.22,130.2,14.94052521]
[1763412417074,0.2,130.22,130.21,14.23052521]
[1763412417274,0.2,130.22,130.18,0.71]
[1763412417498,0.2,130.22,130.21,14.23052521]
[1763412417998,0.2,130.22,130.2,14.23052521]
[1763412418393,0.2,130.22,130.21,14.23052521]
[1763412420475,9.78882769,130.2,130.15,0.71]
[1763412420702,9.78882769,130.2,130.17,14.23052521]
[1763412420881,10.45882769,130.2,130.17,14.23052521]
[1763412421086,14.43052521,130.22,130.08,0.76875768]
[1763412421087,0.2,130.22,130.19,14.23052521]
[1763412421266,18.12096,130.21,130.2,14.23052521]
[1763412421890,27.90978769,130.21,130.19,14.23052521]
[1763412422204,18.32096,130.22,130.2,14.23052521]
[1763412423822,0.2,130.22,130.21,14.94052521]
[1763412423977,0.2,130.22,130.21,14.23052521]
[1763412424498,0.2,130.22,130.21,14.94052521]
[1763412424684,0.2,130.26,130.21,14.94052521]
[1763412424884,0.2,130.32,130.25,14.23052521]
[1763412425103,0.2,130.32,130.31,14.23052521]
[1763412425310,0.2,130.32,130.26,1.47769537]
[1763412425490,0.2,130.32,130.31,14.23052521]
[1763412425690,0.2,130.32,130.31,28.46105042]
[1763412425890,0.2,130.33,130.31,29.17105042]
[1763412426110,0.2,130.33,130.32,29.17105042]
[1763412426823,0.2,130.34,130.32,18.7315614]
[1763412427023,0.2,130.34,130.33,0.71]
[1763412427227,0.2,130.34,130.33,9.7207807]
[1763412427919,0.2,130.34,130.33,0.71]
[1763412428096,0.2,130.34,130.33,9.7207807]
[1763412428420,0.2,130.34,130.33,9.0107807]
[1763412428609,0.2,130.34,130.33,9.7207807]
[1763412428803,0.2,130.34,130.33,9.0107807]
[1763412429194,27.90978769,130.33,130.26,0.71]
[1763412429546,36.92056839,130.33,130.26,0.71]
[1763412429832,0.87,130.34,130.26,9.0107807]
[1763412429833,9.78882769,130.3,130.26,9.0107807]
[1763412430038,18.12096,130.31,130.27,0.71]
[1763412430320,18.12096,130.31,130.29,9.0107807]
[1763412430533,18.79096,130.31,130.28,9.0107807]
[1763412430695,10.45882769,130.3,130.26,9.0107807]
[1763412431713,10.45882769,130.3,130.21,18.12096]
[1763412431714,9.78882769,130.28,130.25,9.0107807]
[1763412431906,9.78882769,130.28,130.24,9.0107807]
[1763412432112,9.78882769,130.28,130.25,9.0107807]
[1763412432612,18.82096,130.27,130.2,18.12096]
[1763412432802,18.12096,130.27,130.24,9.0107807]
[1763412433003,2.2,130.34,130.19,18.12096]
[1763412433004,0.7,130.31,130.26,9.0107807]
[1763412433224,27.90978769,130.29,130.28,9.0107807]
[1763412433397,0.7,130.31,130.28,9.0107807]
[1763412434420,0.2,130.34,130.28,9.0107807]
[1763412434421,0.9,130.34,130.3,9.0107807]
[1763412434639,9.78882769,130.33,130.28,0.66]
[1763412435132,0.7,130.32,130.29,9.0107807]
[1763412435431,9.78882769,130.3,130.27,9.0107807]
[1763412435641,9.78882769,130.3,130.25,0.66]
[1763412435805,10.48882769,130.3,130.27,9.0107807]
[1763412436134,9.78882769,130.3,130.27,9.0107807]
[1763412436367,0.7,130.29,130.27,9.0107807]
[1763412436506,9.78882769,130.28,130.26,9.0107807]
[1763412437202,27.90978769,130.33,130.27,9.6707807]
[1763412437429,9.78882769,130.33,130.3,9.0107807]
[1763412437609,9.78882769,130.33,130.24,9.0107807]
[1763412437610,9.78882769,130.33,130.28,0.66]
[1763412437802,0.2,130.34,130.32,9.0107807]
[1763412438106,27.90978769,130.32,130.24,9.0107807]
[1763412438301,28.56978769,130.32,130.29,9.0107807]
[1763412439106,0.66,130.31,130.29,9.0107807]
[1763412439312,9.78882769,130.3,130.22,0.71]
[1763412439618,18.79960839,130.3,130.18,9.78882769]
[1763412439832,9.78882769,130.28,130.21,18.12096]
[1763412440030,9.78882769,130.28,130.25,9.0107807]
[1763412440246,9.78882769,130.28,130.21,0.71]
[1763412440431,9.78882769,130.28,130.25,9.0107807]
[1763412440626,0.66,130.28,130.25,9.0107807]
[1763412441146,10.44882769,130.28,130.24,9.0107807]
[1763412441335,9.78882769,130.27,130.23,9.0107807]
[1763412441531,10.44882769,130.27,130.23,9.0107807]
[1763412442150,0.66,130.26,130.23,9.0107807]
[1763412442358,18.12096,130.29,130.25,9.0107807]
[1763412442648,0.66,130.3,130.28,9.0107807]
[1763412442835,10.44882769,130.3,130.28,9.0107807]
[1763412443542,9.78882769,130.3,130.28,9.0107807]
[1763412443872,10.44882769,130.3,130.28,9.0107807]
[1763412444550,9.78882769,130.29,130.27,9.0107807]
[1763412444754,10.44882769,130.29,130.26,9.0107807]
[1763412445046,9.78882769,130.27,130.24,9.0107807]
[1763412445241,9.78882769,130.27,130.25,9.0107807]
[1763412446151,10.44882769,130.27,130.25,9.0107807]
[1763412446445,9.78882769,130.3,130.26,9.0107807]
[1763412446826,9.78882769,130.3,130.27,9.0107807]
[1763412447025,0.66,130.29,130.26,9.0107807]
[1763412447766,9.78882769,130.28,130.26,9.0107807]
[1763412447938,0.66,130.29,130.26,9.0107807]
[1763412449857,18.79960839,130.3,130.27,9.0107807]
[1763412449858,9.78882769,130.3,130.27,9.0107807]
[1763412450061,18.78096,130.31,130.27,9.0107807]
[1763412450062,0.2,130.34,130.29,9.0107807]
[1763412450277,0.2,130.34,130.33,9.0107807]
[1763412450461,10.64882769,130.34,130.33,9.0107807]
[1763412450643,9.98882769,130.34,130.33,9.0107807]
[1763412451243,0.2,130.34,130.33,9.0107807]
[1763412451536,0.86,130.34,130.33,9.0107807]
[1763412451741,0.2,130.34,130.33,9.0107807]
[1763412452741,0.2,130.34,130.33,9.7207807]
[1763412453075,0.1,130.36,130.33,9.7207807]
[1763412453254,0.1,130.36,130.32,9.0107807]
[1763412453255,0.2,130.38,130.35,9.0107807]
[1763412453561,0.2,130.38,130.37,9.0107807]
[1763412454065,0.2,130.38,130.37,9.7207807]
[1763412454264,8.8999886,130.46,130.37,9.7207807]
[1763412454464,0.86,130.46,130.44,9.0107807]
[1763412454639,0.86,130.46,130.4,9.0107807]
[1763412454640,0.2,130.46,130.45,9.0107807]
[1763412455548,0.86,130.46,130.44,9.0107807]
[1763412455852,9.78882769,130.45,130.37,18.83096]
[1763412456043,10.44882769,130.45,130.42,9.0107807]
[1763412456250,0.2,130.46,130.44,9.0107807]
[1763412456748,0.2,130.46,130.45,9.0107807]
[1763412457571,0.2,130.46,130.45,9.7207807]
[1763412457888,0.1,130.47,130.45,18.7315614]
[1763412458058,0.1,130.47,130.46,9.6107807]
[1763412458445,0.1,130.47,130.46,9.0107807]
[1763412458644,0.76,130.47,130.4,0.6]
[1763412458864,0.76,130.47,130.41,0.6]
[1763412459174,0.76,130.47,130.45,9.0107807]
[1763412459340,0.76,130.47,130.41,0.6]
[1763412459537,0.76,130.47,130.44,9.0107807]
[1763412459966,0.76,130.47,130.45,9.0107807]
[1763412460161,0.1,130.47,130.46,9.0107807]
[1763412460944,0.1,130.47,130.45,0.6]
[1763412461262,0.1,130.47,130.46,9.0107807]
[1763412463748,0.75,130.47,130.45,9.0107807]
[1763412464452,0.75,130.47,130.41,0.6]
[1763412464651,0.75,130.47,130.44,9.0107807]
[1763412465754,0.75,130.47,130.4,27.1317407]
[1763412465955,0.75,130.47,130.42,9.0107807]
[1763412465956,9.78882769,130.46,130.42,9.0107807]
[1763412466432,0.65,130.46,130.42,9.0107807]
[1763412466684,10.43882769,130.45,130.41,9.0107807]
[1763412467054,0.65,130.44,130.42,9.0107807]
[1763412468885,0.65,130.44,130.41,9.0107807]
[1763412469187,9.78882769,130.43,130.35,18.12096]
[1763412469399,9.78882769,130.43,130.39,9.0107807]
[1763412469545,0.65,130.42,130.39,9.0107807]
[1763412469880,0.65,130.42,130.32,9.6107807]
[1763412469881,9.78882769,130.41,130.32,9.6107807]
[1763412470174,9.78882769,130.41,130.37,9.0107807]
[1763412470353,0.65,130.41,130.38,9.0107807]
[1763412470552,0.65,130.41,130.39,9.0107807]
[1763412470977,0.65,130.41,130.38,9.0107807]
[1763412471285,9.78882769,130.4,130.35,9.0107807]
[1763412471489,9.78882769,130.4,130.37,9.0107807]
[1763412471655,9.78882769,130.42,130.38,9.0107807]
[1763412471858,9.78882769,130.42,130.39,9.0107807]
[1763412472060,0.65,130.41,130.38,27.1317407]
[1763412472692,0.65,130.41,130.39,9.0107807]
[1763412472994,0.65,130.41,130.38,9.0107807]
[1763412473167,0.65,130.41,130.39,9.0107807]
[1763412473564,0.65,130.41,130.38,9.0107807]
[1763412473987,9.78882769,130.42,130.4,9.0107807]
[1763412474189,0.65,130.41,130.39,9.0107807]
[1763412474687,9.78882769,130.43,130.4,9.0107807]
[1763412474994,10.43882769,130.43,130.4,9.0107807]
[1763412475588,10.43882769,130.43,130.41,9.0107807]
[1763412476081,4.02149432,130.42,130.41,9.0107807]
[1763412479198,0.65,130.46,130.41,9.0107807]
[1763412479495,4.67046305,130.44,130.42,9.0107807]
[1763412480090,0.65,130.43,130.42,9.0107807]
[1763412480468,4.02046305,130.44,130.42,9.0107807]
[1763412480697,9.88882769,130.47,130.43,9.0107807]
[1763412480901,4.02036282,130.46,130.45,9.0107807]
[1763412481117,4.67036282,130.46,130.45,9.0107807]
[1763412481615,0.65,130.46,130.45,9.0107807]
[1763412481906,0.1,130.47,130.45,9.6107807]
[1763412482214,0.1,130.47,130.42,0.6]
[1763412482500,0.1,130.47,130.46,9.0107807]
[1763412483078,0.1,130.47,130.41,0.6]
[1763412483079,0.75,130.47,130.41,0.6]
[1763412483300,0.1,130.47,130.46,9.0107807]
[1763412483810,0.75,130.47,130.46,9.0107807]
[1763412484117,9.78882769,130.46,130.31,0.2]
[1763412484408,9.78882769,130.4,130.37,9.0107807]
[1763412484576,9.78882769,130.4,130.32,9.6107807]
[1763412484779,9.78882769,130.38,130.35,9.0107807]
[1763412484979,9.78882769,130.36,130.32,9.0107807]
[1763412485275,18.79960839,130.34,130.31,0.2]
[1763412485479,9.78882769,130.32,130.31,0.2]
[1763412485698,18.79960839,130.32,130.31,0.2]
[1763412485913,10.43882769,130.32,130.31,0.2]
[1763412486079,19.44960839,130.32,130.31,0.2]
[1763412486273,37.57056839,130.32,130.21,0.68]
[1763412486493,0.65,130.31,130.28,9.0107807]
[1763412486697,9.78882769,130.31,130.29,9.0107807]
[1763412487004,10.43882769,130.31,130.24,9.6907807]
[1763412487305,10.43882769,130.31,130.28,9.0107807]
[1763412487914,0.65,130.3,130.28,9.0107807]
[1763412488083,10.43882769,130.31,130.25,0.68]
[1763412488277,10.43882769,130.31,130.28,9.0107807]
[1763412488473,0.65,130.3,130.23,18.12096]
[1763412488679,0.65,130.3,130.26,9.0107807]
[1763412488897,0.65,130.3,130.26,14.14602022]
[1763412489107,14.14602022,130.35,130.29,14.14602022]
[1763412489290,14.14602022,130.35,130.27,0.68]
[1763412489291,10.43882769,130.34,130.31,14.14602022]
[1763412489489,0.65,130.33,130.27,0.68]
[1763412489681,0.65,130.33,130.3,14.14602022]
[1763412490099,0.65,130.33,130.31,14.14602022]
[1763412490304,0.65,130.33,130.32,14.14602022]
[1763412490624,0.65,130.33,130.31,14.14602022]
[1763412491124,0.65,130.32,130.26,18.12096]
[1763412491286,0.65,130.32,130.29,14.14602022]
[1763412491616,0.65,130.32,130.3,14.14602022]
[1763412491793,0.65,130.32,130.29,14.14602022]
[1763412492000,9.78882769,130.34,130.3,14.14602022]
[1763412492305,0.72,130.34,130.32,14.14602022]
[1763412492608,18.12096,130.36,130.25,18.12096]
[1763412492609,9.78882769,130.36,130.33,14.14602022]
[1763412492809,28.62978769,130.36,130.34,14.14602022]
[1763412492984,10.50882769,130.36,130.35,14.14602022]
[1763412493188,10.50882769,130.36,130.34,14.14602022]
[1763412493513,0.72,130.4,130.35,14.14602022]
[1763412493687,0.72,130.38,130.31,0.7]
[1763412493886,0.72,130.38,130.36,14.14602022]
[1763412494685,0.72,130.38,130.31,0.7]
[1763412494994,0.72,130.38,130.35,14.14602022]
[1763412495987,9.78882769,130.37,130.34,14.14602022]
[1763412496183,0.72,130.36,130.32,14.14602022]
[1763412496395,9.78882769,130.35,130.32,14.14602022]
[1763412496618,9.78882769,130.35,130.28,0.7]
[1763412496810,10.50882769,130.35,130.32,14.14602022]
[1763412497128,0.72,130.35,130.32,14.14602022]
[1763412497330,9.78882769,130.37,130.34,14.14602022]
[1763412497631,0.72,130.36,130.34,14.14602022]
[1763412498426,0.72,130.36,130.33,14.14602022]
[1763412498612,0.72,130.36,130.34,14.14602022]
[1763412498820,0.72,130.36,130.3,0.69]
[1763412498821,0.72,130.36,130.33,14.14602022]
[1763412499018,0.72,130.36,130.32,14.14602022]
[1763412499019,9.78882769,130.35,130.32,14.14602022]
[1763412499218,9.78882769,130.35,130.31,14.14602022]
[1763412499417,9.78882769,130.33,130.31,14.14602022]
[1763412499827,0.69,130.32,130.3,14.14602022]
[1763412500338,0.69,130.32,130.31,14.14602022]
[1763412500703,0.69,130.35,130.31,14.14602022]
[1763412500905,9.78882769,130.36,130.33,14.14602022]
[1763412501205,0.69,130.37,130.35,14.14602022]
[1763412501730,0.69,130.39,130.36,14.14602022]
[1763412501942,9.78882769,130.41,130.38,14.14602022]
[1763412502228,10.47882769,130.41,130.38,14.14602022]
[1763412502430,9.78882769,130.41,130.38,14.14602022]
[1763412502648,8.99882769,130.41,130.39,0.69]
[1763412502822,0.69,130.49,130.4,28.29204044]
[1763412503134,18.16499132,130.51,130.39,0.69]
[1763412503135,0.69,130.46,130.44,14.14602022]
[1763412503315,0.69,130.46,130.45,14.14602022]
[1763412503518,4.0189711,130.51,130.45,14.14602022]
[1763412503519,0.69,130.49,130.45,14.14602022]
[1763412503718,0.69,130.49,130.46,14.14602022]
[1763412503946,4.7089711,130.51,130.46,14.14602022]
[1763412504311,0.1,130.61,130.46,32.26698022]
[1763412504312,0.69,130.53,130.46,32.26698022]
[1763412504731,4.01861271,130.52,130.46,32.26698022]
[1763412505034,0.69,130.57,130.48,18.12096]
[1763412505247,4.70802999,130.57,130.56,14.14602022]
[1763412505910,4.70802999,130.57,130.51,18.12096]
[1763412506111,4.70802999,130.57,130.56,14.14602022]
[1763412506112,4.01802999,130.57,130.56,14.14602022]
[1763412506747,4.70802999,130.57,130.51,18.12096]
[1763412506939,10.47882769,130.56,130.52,14.14602022]
[1763412507132,0.69,130.55,130.52,14.14602022]
[1763412507331,0.69,130.55,130.53,14.14602022]
[1763412507781,0.69,130.55,130.51,14.14602022]
[1763412508131,0.69,130.55,130.52,14.14602022]
[1763412508544,0.69,130.55,130.53,14.14602022]
[1763412508935,4.01802999,130.57,130.54,14.14602022]
[1763412509149,4.01802999,130.57,130.56,14.14602022]
[1763412509881,0.1,130.6,130.56,14.14602022]
[1763412510037,0.1,130.6,130.59,14.14602022]
[1763412510647,0.79,130.6,130.54,18.12096]
[1763412510970,0.79,130.6,130.58,14.14602022]
[1763412511270,0.79,130.6,130.5,14.14602022]
[1763412511271,0.79,130.6,130.54,18.12096]
[1763412511655,0.79,130.6,130.56,14.14602022]
[1763412511855,0.79,130.6,130.45,0.76657723]
[1763412511856,9.78882769,130.57,130.45,0.76657723]
[1763412512170,23.93484791,130.59,130.54,14.14602022]
[1763412512354,9.78882769,130.57,130.53,14.14602022]
[1763412512682,9.78882769,130.57,130.51,14.14602022]
[1763412512683,9.78882769,130.55,130.51,14.14602022]
[1763412512879,0.69,130.56,130.52,14.14602022]
[1763412513188,0.69,130.55,130.53,14.14602022]
[1763412513685,14.14602022,130.58,130.54,14.14602022]
[1763412513686,0.69,130.58,130.54,14.14602022]
[1763412513849,0.1,130.6,130.57,14.14602022]
[1763412514056,0.1,130.6,130.59,14.14602022]
[1763412514250,0.79,130.6,130.57,18.12096]
[1763412514465,0.79,130.6,130.54,18.12096]
[1763412514662,0.79,130.6,130.59,14.14602022]
[1763412515153,0.1,130.6,130.59,14.14602022]
[1763412515454,0.1,130.6,130.59,46.41300044]
[1763412515968,0.1,130.6,130.59,32.26698022]
[1763412516376,0.1,130.6,130.59,46.41300044]
[1763412517365,0.1,130.61,130.6,18.12096]
[1763412517580,0.1,130.69,130.63,18.12096]
[1763412517767,0.1,130.69,130.68,14.14602022]
[1763412519254,0.79,130.69,130.68,14.14602022]
[1763412519457,0.1,130.69,130.68,14.14602022]
[1763412519652,0.1,130.69,130.68,28.29204044]
[1763412520097,0.1,130.69,130.66,0.76534517]
[1763412520270,0.1,130.69,130.68,14.14602022]
[1763412520472,0.1,130.69,130.68,28.29204044]
[1763412520781,0.2,130.71,130.7,18.12096]
[1763412521094,0.2,130.71,130.66,18.12096]
[1763412521095,0.89,130.71,130.66,18.12096]
[1763412521383,0.89,130.71,130.68,14.14602022]
[1763412521588,0.89,130.71,130.66,18.12096]
[1763412521589,0.2,130.71,130.7,14.14602022]
[1763412522172,0.2,130.71,130.66,18.12096]
[1763412522389,0.2,130.71,130.7,14.14602022]
[1763412522895,0.2,130.71,130.66,18.12096]
[1763412522896,0.92,130.71,130.66,18.12096]
[1763412523059,0.92,130.71,130.68,14.14602022]
[1763412523262,0.92,130.71,130.69,14.14602022]
[1763412523465,0.72,130.7,130.59,18.12096]
[1763412523762,14.86602022,130.7,130.64,14.14602022]
[1763412523987,9.78882769,130.67,130.62,14.14602022]
[1763412524189,14.14602022,130.67,130.61,14.14602022]
[1763412524363,0.72,130.66,130.61,14.14602022]
[1763412525266,14.86602022,130.66,130.61,14.14602022]
[1763412525473,23.93484791,130.65,130.59,14.14602022]
[1763412525693,14.14602022,130.64,130.58,14.14602022]
[1763412525995,23.93484791,130.63,130.57,14.14602022]
[1763412526170,24.65484791,130.63,130.57,14.14602022]
[1763412526374,0.72,130.62,130.59,14.14602022]
[1763412526694,0.72,130.62,130.58,14.14602022]
[1763412527194,14.86602022,130.62,130.57,14.14602022]
[1763412527365,0.72,130.62,130.57,14.14602022]
[1763412527569,0.72,130.61,130.57,14.14602022]
[1763412527776,0.72,130.61,130.54,18.12096]
[1763412527989,0.72,130.61,130.57,14.14602022]
[1763412528498,0.72,130.61,130.58,14.14602022]
[1763412528697,0.72,130.65,130.6,14.14602022]
[1763412528887,9.78882769,130.64,130.6,14.14602022]
[1763412529276,9.78882769,130.64,130.58,18.12096]
[1763412529277,0.72,130.64,130.62,14.14602022]
[1763412530390,0.72,130.64,130.63,14.14602022]
[1763412530781,0.72,130.64,130.57,18.12096]
[1763412530981,0.72,130.64,130.62,14.14602022]
[1763412531182,0.72,130.66,130.63,14.14602022]
[1763412531779,0.72,130.66,130.6,18.12096]
[1763412531989,0.72,130.66,130.64,14.14602022]
[1763412532184,0.72,130.66,130.6,18.12096]
[1763412532386,9.78882769,130.65,130.61,14.14602022]
[1763412532586,9.78882769,130.65,130.6,14.14602022]
[1763412532789,0.72,130.64,130.61,14.14602022]
[1763412532992,0.72,130.64,130.6,14.14602022]
[1763412533189,0.72,130.64,130.57,18.12096]
[1763412533190,9.78882769,130.63,130.57,18.12096]
[1763412533478,0.72,130.62,130.59,14.14602022]
[1763412534009,0.72,130.62,130.56,18.12096]
[1763412534209,18.12096,130.66,130.56,18.12096]
[1763412534210,14.14602022,130.65,130.6,14.14602022]
[1763412534407,18.12096,130.66,130.61,14.14602022]
[1763412534408,0.72,130.64,130.61,14.14602022]
[1763412534600,0.72,130.64,130.5,14.14602022]
[1763412534601,9.78882769,130.63,130.5,14.14602022]
[1763412534794,9.78882769,130.63,130.58,14.14602022]
[1763412534989,9.78882769,130.61,130.51,9.78882769]
[1763412535193,9.78882769,130.61,130.57,14.14602022]
[1763412535499,0.72,130.6,130.57,14.14602022]
[1763412535902,0.72,130.6,130.56,14.14602022]
[1763412536107,0.72,130.6,130.57,14.14602022]
[1763412536598,0.72,130.6,130.58,14.14602022]
[1763412538483,0.72,130.63,130.59,14.14602022]
[1763412538694,0.72,130.62,130.59,14.14602022]
[1763412539408,10.50882769,130.62,130.54,18.12096]
[1763412539581,9.78882769,130.61,130.57,14.14602022]
[1763412539786,10.50882769,130.61,130.56,14.14602022]
[1763412539988,0.72,130.6,130.57,14.14602022]
[1763412540210,0.72,130.6,130.54,18.12096]
[1763412540211,9.78882769,130.59,130.54,18.12096]
[1763412540519,9.78882769,130.59,130.5,14.14602022]
[1763412540520,0.72,130.6,130.57,14.14602022]
[1763412540885,0.72,130.6,130.56,14.14602022]
[1763412541286,0.72,130.6,130.54,18.12096]
[1763412541287,0.72,130.6,130.58,14.14602022]
[1763412541688,0.72,130.6,130.54,18.12096]
[1763412541926,0.72,130.6,130.58,14.14602022]
[1763412542121,0.72,130.6,130.54,18.12096]
[1763412542299,0.72,130.6,130.56,14.14602022]
[1763412542501,62.90802777,130.77,130.59,14.14602022]
[1763412542502,0.72,130.64,130.59,14.14602022]
[1763412542702,0.72,130.64,130.6,14.14602022]
[1763412543221,0.72,130.64,130.61,14.14602022]
[1763412543386,0.72,130.64,130.6,14.14602022]
[1763412544406,0.72,130.64,130.59,14.14602022]
[1763412544611,9.78882769,130.63,130.59,14.14602022]
[1763412544810,14.86602022,130.64,130.54,18.12096]
[1763412544811,0.72,130.64,130.54,18.12096]
[1763412545012,0.72,130.64,130.54,9.78882769]
[1763412545212,0.72,130.64,130.57,18.12096]
[1763412545413,0.72,130.64,130.6,14.14602022]
[1763412545787,9.78882769,130.63,130.6,14.14602022]
[1763412546108,0.72,130.62,130.59,14.14602022]
[1763412547107,0.72,130.64,130.61,14.14602022]
[1763412547306,0.72,130.64,130.62,14.14602022]
[1763412547494,0.72,130.64,130.63,14.14602022]
[1763412548120,27.90978769,130.68,130.63,14.14602022]
[1763412548394,0.72,130.67,130.66,14.14602022]
[1763412548787,27.90978769,130.7,130.66,14.14602022]
[1763412548788,0.72,130.69,130.66,14.14602022]
[1763412549011,0.72,130.69,130.68,14.14602022]
[1763412549714,0.72,130.69,130.67,14.14602022]
[1763412550390,0.72,130.69,130.62,18.12096]
[1763412550391,0.72,130.69,130.66,14.14602022]
[1763412550591,0.72,130.69,130.59,14.14602022]
[1763412550592,9.78882769,130.68,130.59,14.14602022]
[1763412550791,27.90978769,130.68,130.62,8.97848417]
[1763412551016,9.78882769,130.66,130.62,8.97848417]
[1763412551414,0.72,130.65,130.62,8.97848417]
[1763412551890,0.71,130.68,130.64,8.97848417]
[1763412552094,0.71,130.68,130.67,8.97848417]
[1763412552329,0.71,130.68,130.61,18.12096]
[1763412552501,9.78882769,130.67,130.6,18.12096]
[1763412552706,9.78882769,130.67,130.61,18.12096]
[1763412552907,0.71,130.66,130.64,8.97848417]
[1763412553209,0.71,130.69,130.64,8.97848417]
[1763412553411,0.71,130.68,130.65,8.97848417]
[1763412553921,0.71,130.68,130.66,8.97848417]
[1763412554224,0.71,130.68,130.62,18.12096]
[1763412554515,0.71,130.68,130.64,8.97848417]
[1763412554690,0.71,130.68,130.65,8.97848417]
[1763412555414,0.71,130.68,130.66,8.97848417]
[1763412556851,0.71,130.68,130.65,8.97848417]
[1763412557431,0.71,130.68,130.66,8.97848417]
[1763412558038,0.71,130.7,130.67,8.97848417]
[1763412558248,0.71,130.7,130.68,8.97848417]
[1763412560329,0.71,130.7,130.62,24.31419402]
[1763412560330,0.71,130.7,130.66,8.97848417]
[1763412560527,0.71,130.7,130.61,6.19323402]
[1763412560724,18.76731186,130.68,130.58,6.19323402]
[1763412560918,9.78882769,130.65,130.61,8.97848417]
[1763412561116,0.71,130.67,130.64,8.97848417]
[1763412561330,0.71,130.69,130.66,8.97848417]
[1763412561531,0.71,130.69,130.6,24.31419402]
[1763412561532,0.71,130.69,130.67,8.97848417]
[1763412561752,0.71,130.69,130.63,18.12096]
[1763412561753,0.71,130.68,130.66,8.97848417]
[1763412562438,9.78882769,130.7,130.67,8.97848417]
[1763412562439,0.71,130.7,130.67,8.97848417]
[1763412562641,0.71,130.7,130.68,8.97848417]
[1763412563535,0.71,130.7,130.67,8.97848417]
[1763412563722,0.71,130.7,130.66,8.97848417]
[1763412563921,10.49882769,130.7,130.66,8.97848417]
[1763412564454,0.71,130.69,130.66,8.97848417]
[1763412564947,0.71,130.69,130.68,8.97848417]
[1763412565149,0.2,130.71,130.68,8.97848417]
[1763412565150,0.91,130.71,130.68,8.97848417]
[1763412565359,0.91,130.71,130.7,8.97848417]
[1763412565360,0.2,130.71,130.7,8.97848417]
[1763412566660,0.91,130.71,130.66,6.19323402]
[1763412566867,27.90978769,130.7,130.63,6.19323402]
[1763412567048,37.59827186,130.7,130.65,8.97848417]
[1763412567252,0.71,130.69,130.66,8.97848417]
[1763412567731,0.71,130.69,130.62,24.31419402]
[1763412567732,0.2,130.71,130.68,8.97848417]
[1763412567931,0.2,130.71,130.7,27.09944417]
[1763412568863,9.88848417,130.71,130.65,6.19323402]
[1763412569069,9.78882769,130.69,130.59,6.87323402]
[1763412569359,8.97848417,130.66,130.61,8.97848417]
[1763412569661,0.76516948,130.65,130.57,6.19323402]
[1763412569966,8.97848417,130.64,130.57,18.12096]
[1763412570147,1.47516948,130.65,130.61,8.97848417]
[1763412570342,9.78882769,130.67,130.64,8.97848417]
[1763412570549,1.47516948,130.68,130.65,8.97848417]
[1763412570860,1.47516948,130.68,130.64,8.97848417]
[1763412571060,0.71,130.67,130.64,8.97848417]
[1763412571244,0.71,130.67,130.63,8.97848417]
[1763412571447,0.76516948,130.66,130.61,8.97848417]